bitfinex/quotes_SOLUSD_20241031
["timestamp","ask_amount","ask_price","bid_price","bid_amount"]
[1730393420076,13.60839092,170.17,170.12,13.60979092]
[1730393420279,7.73179092,170.19,170.13,31.50867492]
[1730393421305,7.73179092,170.17,170.13,44.349184]
[1730393421780,7.73179092,170.16,170.13,44.349184]
[1730393421981,7.73179092,170.16,170.13,20.5723]
[1730393422411,7.73179092,170.16,170.13,14.6946]
[1730393423511,7.73179092,170.17,170.13,14.6946]
[1730393425294,13.60809092,170.18,170.13,22.42639092]
[1730393426014,5.8763,170.18,170.13,28.30419092]
[1730393427105,13.60759092,170.19,170.14,7.73179092]
[1730393427324,7.73179092,170.22,170.16,7.73179092]
[1730393427606,7.73179092,170.21,170.16,7.73179092]
[1730393427980,13.60659092,170.22,170.16,7.73179092]
[1730393428180,13.61455727,170.22,170.16,7.73975727]
[1730393428412,13.61455727,170.22,170.17,7.73975727]
[1730393428616,5.8748,170.22,170.17,7.73975727]
[1730393428788,13.61455727,170.22,170.17,7.73975727]
[1730393429589,7.73975727,170.21,170.17,5.8762]
[1730393430486,13.61495727,170.21,170.17,5.8762]
[1730393431021,7.73975727,170.18,170.14,29.654184]
[1730393431308,5.8752,170.21,170.13,22.43405727]
[1730393431309,7.73975727,170.17,170.13,20.5721]
[1730393432415,7.73975727,170.18,170.13,20.5721]
[1730393433613,13.61605727,170.18,170.13,20.5721]
[1730393436602,13.61605727,170.18,170.13,22.43405727]
[1730393437103,13.61605727,170.18,170.13,14.6943]
[1730393437503,13.61605727,170.18,170.13,20.5721]
[1730393442618,13.61946511,170.18,170.13,14.6943]
[1730393444732,7.74316511,170.17,170.13,20.5721]
[1730393445030,13.61946511,170.18,170.13,20.5721]
[1730393453311,7.74316511,170.2,170.14,31.52004911]
[1730393453527,7.74316511,170.2,170.15,7.74316511]
[1730393453727,7.74316511,170.2,170.14,31.52004911]
[1730393455142,13.61856511,170.2,170.15,5.8771]
[1730393455920,13.61856511,170.2,170.15,20.57]
[1730393458516,13.61856511,170.2,170.15,28.31316511]
[1730393459945,7.74316511,170.19,170.15,20.57]
[1730393461118,5.8747,170.22,170.15,20.57]
[1730393461119,7.74316511,170.2,170.15,28.31316511]
[1730393461444,7.74316511,170.19,170.15,20.57]
[1730393461634,13.61906511,170.19,170.15,20.57]
[1730393462023,7.74316511,170.16,170.09,14.16696511]
[1730393462222,5.8759,170.19,170.08,5.8793]
[1730393462223,7.74316511,170.12,170.08,5.8793]
[1730393462740,7.74316511,170.13,170.08,13.62246511]
[1730393463623,13.62106511,170.13,170.08,13.62246511]
[1730393464332,7.74316511,170.11,170.07,15.786]
[1730393464637,7.74316511,170.11,170.07,21.6658]
[1730393464940,7.74316511,170.11,170.06,28.32316511]
[1730393466541,13.62146511,170.12,170.07,7.74316511]
[1730393467233,13.62146511,170.12,170.07,13.62296511]
[1730393468656,13.62146511,170.12,170.06,22.44326511]
[1730393468820,7.74316511,170.11,170.06,28.32346511]
[1730393469330,13.62146511,170.12,170.06,28.32346511]
[1730393470635,7.74316511,170.09,170.05,8.94657828]
[1730393470821,7.74316511,170.08,170.05,8.94657828]
[1730393471218,7.74316511,170.08,170.05,14.82707828]
[1730393471524,7.74316511,170.09,170.05,14.82707828]
[1730393472031,7.74316511,170.07,170.05,8.94657828]
[1730393472648,7.74316511,170.08,170.05,8.94657828]
[1730393473145,13.62236511,170.09,170.05,14.82707828]
[1730393473462,7.74316511,170.08,170.05,14.82707828]
[1730393474937,7.74316511,170.08,170.05,8.94657828]
[1730393476158,7.74316511,170.06,170.02,5.8814]
[1730393477146,13.62346511,170.06,170.02,5.8814]
[1730393477555,7.74316511,170.06,170.02,5.8814]
[1730393478261,7.74316511,170.05,170.01,23.776884]
[1730393478460,13.62366511,170.06,170.01,31.52004911]
[1730393478960,7.74316511,170.05,170.01,29.658684]
[1730393482455,7.74316511,170.04,170.01,29.658684]
[1730393482959,7.74316511,170.08,170.03,7.74316511]
[1730393483158,7.74316511,170.08,170.01,44.363684]
[1730393483159,13.62236511,170.09,170.04,7.74316511]
[1730393483363,7.74316511,170.06,170.01,52.10684911]
[1730393483658,5.8792,170.09,170.01,52.10684911]
[1730393483659,7.74316511,170.05,170.01,44.363684]
[1730393484353,7.74316511,170.05,170.01,14.705]
[1730393484940,13.62386511,170.05,170.01,14.705]
[1730393485639,5.8807,170.05,170.01,22.44816511]
[1730393485848,5.8802,170.06,170.01,22.44816511]
[1730393486239,7.74316511,170.07,170.02,31.52004911]
[1730393486439,7.74316511,170.08,170.03,7.74316511]
[1730393487159,5.8799,170.07,170.03,13.62436511]
[1730393487580,5.8799,170.07,170.03,5.8812]
[1730393489562,5.8799,170.07,170.02,37.40164911]
[1730393489864,13.62306511,170.07,170.02,29.658484]
[1730393490465,5.8799,170.07,170.02,52.10574911]
[1730393490667,13.62306511,170.07,170.02,52.10574911]
[1730393491243,7.74316511,170.06,170.01,7.74316511]
[1730393491451,7.74316511,170.05,170.01,23.776884]
[1730393491764,7.74316511,170.03,169.99,15.5552]
[1730393491947,7.74316511,170.02,169.97,14.7082]
[1730393492153,7.74316511,170.01,169.97,14.7082]
[1730393493759,13.62526511,170.01,169.97,14.7082]
[1730393494771,7.74316511,169.98,169.92,12.1239]
[1730393494975,7.74316511,169.96,169.92,5.885]
[1730393495358,7.74316511,169.96,169.91,20.5987]
[1730393495668,13.62686511,169.96,169.91,20.5987]
[1730393495870,13.62686511,169.96,169.91,28.34186511]
[1730393496966,7.74316511,169.95,169.91,14.7133]
[1730393497172,5.8837,169.96,169.86,7.74316511]
[1730393497173,7.74316511,169.92,169.86,7.74316511]
[1730393497470,7.74316511,169.91,169.85,28.34946511]
[1730393498473,13.62866511,169.91,169.85,28.34946511]
[1730393498678,7.74316511,169.9,169.85,20.6063]
[1730393499372,7.74316511,169.9,169.85,28.34946511]
[1730393499684,7.74316511,169.9,169.85,20.6063]
[1730393502879,7.74316511,169.89,169.85,20.6063]
[1730393503285,7.74316511,169.93,169.87,7.74316511]
[1730393504652,7.74316511,169.93,169.88,13.62966511]
[1730393504848,7.74316511,169.93,169.88,28.34586511]
[1730393505581,7.74316511,169.95,169.9,7.74316511]
[1730393506273,7.74316511,169.94,169.89,7.74316511]
[1730393506464,7.74316511,169.94,169.9,5.8858]
[1730393506882,7.74316511,169.93,169.9,5.8858]
[1730393507988,13.62736511,169.95,169.89,28.34466511]
[1730393508159,7.74316511,169.95,169.89,28.34466511]
[1730393508587,13.62716511,169.95,169.89,28.34466511]
[1730393508765,7.74316511,169.94,169.89,28.34466511]
[1730393510488,13.62716511,169.95,169.9,7.74316511]
[1730393512602,7.74316511,169.94,169.89,13.62896511]
[1730393513088,13.62716511,169.95,169.89,28.34436511]
[1730393513265,7.74316511,169.93,169.89,20.6012]
[1730393513473,7.74316511,169.96,169.9,31.52004911]
[1730393513986,7.74316511,169.95,169.9,31.52004911]
[1730393514164,7.74316511,169.95,169.9,23.776884]
[1730393514566,7.74316511,169.95,169.91,5.8854]
[1730393514779,7.74316511,169.96,169.91,20.599]
[1730393519891,7.74316511,169.95,169.91,20.599]
[1730393520076,7.74316511,169.94,169.91,20.599]
[1730393520466,7.74316511,169.95,169.91,20.599]
[1730393520777,7.74316511,169.94,169.91,20.599]
[1730393521096,7.74316511,169.93,169.9,5.8857]
[1730393521274,7.74316511,169.92,169.9,5.8857]
[1730393522081,7.74316511,169.92,169.88,20.6022]
[1730393522290,7.74316511,169.92,169.89,23.776884]
[1730393522795,7.74316511,169.92,169.88,20.6022]
[1730393522994,7.74316511,169.93,169.88,20.6022]
[1730393523374,7.74316511,169.91,169.88,20.6022]
[1730393524404,7.74316511,169.92,169.88,14.7157]
[1730393525297,7.74316511,169.94,169.89,31.52004911]
[1730393526199,7.74316511,169.94,169.9,5.8858]
[1730393527386,7.74316511,169.94,169.9,20.6003]
[1730393527895,7.74316511,169.95,169.91,23.776884]
[1730393528198,7.74316511,169.95,169.92,20.5979]
[1730393528498,6.12788285,169.99,169.92,20.5979]
[1730393528499,7.74316511,169.97,169.93,23.776884]
[1730393528672,7.74316511,169.96,169.93,23.776884]
[1730393529295,7.74316511,169.97,169.93,23.776884]
[1730393529695,7.74316511,169.98,169.94,5.8844]
[1730393529897,7.74316511,169.98,169.94,20.5954]
[1730393530373,5.8827,169.99,169.94,20.5954]
[1730393530374,7.74316511,169.99,169.95,23.776884]
[1730393530682,7.74316511,170.01,169.96,7.74316511]
[1730393531611,7.74316511,170.02,169.97,31.52004911]
[1730393531899,5.8812,170.04,169.97,23.776884]
[1730393531900,7.74316511,170.01,169.97,23.776884]
[1730393532096,7.74316511,169.99,169.95,5.884]
[1730393533275,7.74316511,169.99,169.95,20.5942]
[1730393534785,13.62556511,170.0,169.95,28.33736511]
[1730393535984,7.74316511,170.0,169.95,28.33736511]
[1730393536185,7.74316511,170.01,169.96,31.52004911]
[1730393536390,7.74316511,170.04,169.98,7.74316511]
[1730393536790,7.74316511,170.03,169.99,23.776884]
[1730393537286,5.8803,170.06,169.98,23.776884]
[1730393537287,7.74316511,170.02,169.98,23.776884]
[1730393537492,7.74316511,170.01,169.95,57.75776511]
[1730393537704,7.74316511,170.01,169.96,7.74316511]
[1730393537993,7.74316511,170.01,169.97,5.8833]
[1730393538594,13.62496511,170.02,169.97,5.8833]
[1730393538802,13.62496511,170.02,169.97,20.5917]
[1730393541203,7.74316511,170.0,169.95,7.74316511]
[1730393541396,7.74316511,170.0,169.94,7.74316511]
[1730393541599,7.74316511,170.0,169.95,23.776884]
[1730393542494,13.62556511,170.0,169.95,29.660684]
[1730393542689,7.74316511,170.0,169.95,52.11404911]
[1730393543204,7.74316511,170.0,169.95,44.370884]
[1730393543402,7.74316511,170.0,169.95,52.11404911]
[1730393543598,13.62546511,170.0,169.95,52.11404911]
[1730393544182,16.0564,170.03,169.98,7.74316511]
[1730393544183,29.68116511,170.03,169.98,7.74316511]
[1730393544399,29.68116511,170.03,169.98,13.62596511]
[1730393544701,29.68116511,170.03,169.98,5.8828]
[1730393544900,7.74316511,170.02,169.98,5.8828]
[1730393545104,7.74316511,170.02,169.97,22.45126511]
[1730393545286,7.74316511,170.02,169.97,28.33456511]
[1730393546099,7.74316511,170.01,169.97,20.5914]
[1730393546305,13.62516511,170.01,169.97,20.5914]
[1730393546811,5.882,170.01,169.97,20.5914]
[1730393547807,7.74316511,170.01,169.97,20.5914]
[1730393548013,13.62476511,170.02,169.97,20.5914]
[1730393548712,13.62476511,170.02,169.97,22.45126511]
[1730393548912,7.74316511,170.04,169.98,7.74316511]
[1730393549204,7.74316511,170.03,169.98,7.74316511]
[1730393549502,7.74316511,170.03,169.98,23.776884]
[1730393549693,7.74316511,170.03,169.98,31.52004911]
[1730393550092,7.74316511,170.03,169.99,5.8826]
[1730393551189,13.62456511,170.03,169.99,5.8826]
[1730393552703,7.74316511,170.02,169.99,5.8826]
[1730393553691,13.62486511,170.02,169.98,5.883]
[1730393555601,13.62486511,170.02,169.97,20.5914]
[1730393555602,7.74316511,170.0,169.97,20.5914]
[1730393555995,7.74316511,170.01,169.97,20.5914]
[1730393556692,7.74316511,170.03,169.98,7.74316511]
[1730393556885,7.74316511,170.05,169.99,7.74316511]
[1730393557091,7.74316511,170.04,169.98,7.74316511]
[1730393557804,14.8001,170.07,169.98,13.62606511]
[1730393557805,13.62466511,170.03,169.98,13.62606511]
[1730393558017,13.62466511,170.03,169.98,5.8829]
[1730393558199,7.74316511,170.02,169.98,5.8829]
[1730393558892,13.62486511,170.02,169.97,20.5914]
[1730393559500,13.62486511,170.02,169.97,14.7081]
[1730393559501,7.74316511,170.0,169.97,14.7081]
[1730393560288,5.8817,170.02,169.97,20.5914]
[1730393560289,13.62486511,170.02,169.97,20.5914]
[1730393560817,13.62486511,170.02,169.97,14.7081]
[1730393562003,7.74316511,170.01,169.95,7.74316511]
[1730393562514,7.74316511,169.99,169.95,23.776884]
[1730393562813,7.74316511,170.01,169.95,7.74316511]
[1730393563808,5.8823,170.0,169.95,13.62686511]
[1730393564022,13.62526511,170.01,169.96,7.74316511]
[1730393564317,13.62526511,170.01,169.95,13.62686511]
[1730393564615,7.74316511,169.99,169.95,5.8837]
[1730393564819,7.74316511,169.99,169.94,5.8843]
[1730393564995,7.74316511,169.98,169.94,5.8843]
[1730393565797,13.62616511,169.99,169.94,5.8843]
[1730393567720,7.74316511,169.98,169.93,31.52004911]
[1730393567923,7.74316511,169.96,169.93,23.776884]
[1730393568218,7.74316511,169.94,169.9,15.9605]
[1730393568400,7.74316511,169.94,169.9,5.8858]
[1730393568805,7.74316511,169.95,169.9,13.62896511]
[1730393569204,7.74316511,169.94,169.9,5.8858]
[1730393569505,7.74316511,169.93,169.89,14.7148]
[1730393569703,7.74316511,169.91,169.87,5.8868]
[1730393570416,7.74316511,169.93,169.87,28.34706511]
[1730393570596,7.74316511,169.93,169.88,7.74316511]
[1730393571428,13.62806511,169.93,169.88,13.62956511]
[1730393572615,7.74316511,169.92,169.87,28.34706511]
[1730393573024,7.74316511,169.93,169.88,7.74316511]
[1730393573225,7.74316511,169.93,169.87,20.6039]
[1730393573226,7.74316511,169.93,169.87,28.34706511]
[1730393573429,7.74316511,169.92,169.87,28.34706511]
[1730393573722,7.74316511,169.91,169.87,20.6039]
[1730393575231,13.62856511,169.91,169.87,20.6039]
[1730393575533,7.74316511,169.91,169.87,20.6039]
[1730393578438,7.74316511,169.92,169.87,28.34706511]
[1730393578614,7.74316511,169.92,169.87,20.6039]
[1730393579339,7.74316511,169.9,169.87,14.7171]
[1730393579812,7.74316511,169.91,169.87,14.7171]
[1730393580433,5.8856,169.91,169.87,14.7171]
[1730393580736,7.74316511,169.93,169.88,7.74316511]
[1730393580937,13.62756511,169.94,169.88,7.74316511]
[1730393581641,13.62756511,169.94,169.88,13.62956511]
[1730393582741,13.62816511,169.93,169.88,13.62956511]
[1730393583535,13.62816511,169.93,169.88,5.8864]
[1730393585815,13.62816511,169.93,169.88,13.62956511]
[1730393586138,13.62646511,169.97,169.91,7.74316511]
[1730393586321,13.62646511,169.97,169.92,7.74316511]
[1730393586711,13.62646511,169.97,169.91,7.74316511]
[1730393587321,13.62646511,169.97,169.91,13.62836511]
[1730393587615,7.74316511,169.96,169.91,13.62836511]
[1730393588441,7.74316511,169.95,169.91,5.8852]
[1730393589327,7.74316511,169.94,169.9,20.5998]
[1730393591112,13.62726511,169.95,169.9,28.34296511]
[1730393591321,5.8841,169.95,169.9,28.34296511]
[1730393591837,5.8841,169.95,169.91,13.62846511]
[1730393593441,5.8841,169.95,169.9,22.45716511]
[1730393593631,13.62726511,169.95,169.9,28.34296511]
[1730393596039,7.74316511,169.95,169.9,28.34296511]
[1730393596240,13.62696511,169.96,169.9,28.34296511]
[1730393596747,7.74316511,169.96,169.91,31.52004911]
[1730393596951,13.62656511,169.97,169.92,7.74316511]
[1730393597133,5.8834,169.97,169.92,7.74316511]
[1730393597523,13.62656511,169.97,169.91,31.52004911]
[1730393597728,7.74316511,169.96,169.92,5.8851]
[1730393597937,7.74316511,169.96,169.91,31.52004911]
[1730393598142,7.74316511,169.95,169.91,44.375784]
[1730393598350,7.74316511,169.94,169.91,14.7136]
[1730393598659,7.74316511,169.95,169.91,14.7136]
[1730393598941,7.74316511,169.95,169.91,20.599]
[1730393599528,7.74316511,169.95,169.9,5.8856]
[1730393600034,13.62756511,169.94,169.9,5.8856]
[1730393600951,13.62756511,169.94,169.89,20.6015]
[1730393603340,13.62756511,169.94,169.89,28.34466511]
[1730393603952,13.62756511,169.94,169.89,20.6015]
[1730393606245,7.74316511,169.93,169.89,20.6015]
[1730393607636,7.74316511,169.94,169.89,20.6015]
[1730393608136,13.62766511,169.94,169.89,20.6015]
[1730393608455,7.74316511,169.97,169.92,7.74316511]
[1730393608653,5.8836,169.97,169.93,7.74316511]
[1730393610143,5.8836,169.97,169.92,13.62816511]
[1730393610550,7.74316511,169.96,169.92,5.885]
[1730393611758,13.62696511,169.96,169.92,5.885]
[1730393612634,7.74316511,169.97,169.92,5.885]
[1730393612851,7.74316511,169.96,169.92,5.885]
[1730393613054,7.74316511,169.97,169.92,5.885]
[1730393613766,5.8837,169.96,169.92,5.885]
[1730393616357,7.74316511,169.96,169.92,5.885]
[1730393617341,5.883,169.98,169.92,13.62816511]
[1730393617342,13.62616511,169.98,169.92,13.62816511]
[1730393617847,13.62616511,169.98,169.93,7.74316511]
[1730393618041,5.883,169.98,169.94,7.74316511]
[1730393618555,5.883,169.98,169.92,20.5978]
[1730393618556,13.62546511,170.0,169.95,31.52004911]
[1730393618951,5.8823,170.0,169.95,31.52004911]
[1730393619968,5.8823,170.0,169.95,37.40384911]
[1730393622275,7.74316511,170.0,169.95,37.40384911]
[1730393623879,13.62566511,170.0,169.95,37.40384911]
[1730393624364,13.62566511,170.0,169.95,29.660684]
[1730393626161,7.74316511,169.99,169.95,29.660684]
[1730393627557,7.74316511,169.99,169.94,22.45356511]
[1730393627558,7.74316511,169.98,169.94,20.5947]
[1730393628646,7.74316511,169.98,169.94,14.7104]
[1730393628953,7.74316511,170.0,169.94,22.45356511]
[1730393629155,13.62556511,170.0,169.94,22.45356511]
[1730393629576,7.74316511,169.99,169.94,22.45356511]
[1730393630070,13.62596511,169.99,169.94,28.33796511]
[1730393630741,13.62596511,169.99,169.94,20.5948]
[1730393631967,7.74316511,169.95,169.91,23.776884]
[1730393632448,7.74316511,169.95,169.9,14.7138]
[1730393633154,5.8841,169.95,169.9,28.34276511]
[1730393633753,5.8841,169.95,169.91,23.776884]
[1730393634470,5.8841,169.95,169.91,29.662184]
[1730393634674,13.62726511,169.95,169.91,29.662184]
[1730393635578,7.74316511,169.94,169.89,5.8859]
[1730393636652,13.62786511,169.94,169.89,5.8859]
[1730393638653,7.74316511,169.91,169.88,15.8908]
[1730393638867,7.74316511,169.91,169.87,20.6032]
[1730393640359,13.62866511,169.91,169.87,20.6032]
[1730393640550,7.74316511,169.9,169.86,5.8871]
[1730393640874,7.74316511,169.9,169.87,23.776884]
[1730393641075,13.62866511,169.91,169.87,23.776884]
[1730393641486,7.74316511,169.9,169.87,23.776884]
[1730393641786,13.62866511,169.91,169.87,23.776884]
[1730393641988,7.74316511,169.92,169.87,31.52004911]
[1730393642364,13.62846511,169.92,169.87,37.40674911]
[1730393642695,7.74316511,169.94,169.89,23.776884]
[1730393642991,7.74316511,169.95,169.89,31.52004911]
[1730393643983,7.74316511,169.92,169.88,23.776884]
[1730393644172,7.74316511,169.92,169.87,20.6038]
[1730393644481,7.74316511,169.93,169.88,23.776884]
[1730393644868,15.9352,169.97,169.89,7.74316511]
[1730393644869,7.74316511,169.95,169.89,7.74316511]
[1730393645075,13.62666511,169.97,169.91,7.74316511]
[1730393645680,13.62666511,169.97,169.88,23.776884]
[1730393645681,5.8835,169.97,169.92,7.74316511]
[1730393645993,13.62626511,169.98,169.93,7.74316511]
[1730393646364,13.62626511,169.98,169.92,7.74316511]
[1730393646689,7.74316511,169.97,169.92,5.885]
[1730393647571,13.62676511,169.97,169.92,13.62816511]
[1730393648787,7.74316511,169.98,169.92,13.62816511]
[1730393649788,5.8833,169.97,169.92,13.62816511]
[1730393650685,13.62646511,169.97,169.92,5.885]
[1730393651564,7.74316511,169.96,169.92,5.885]
[1730393654972,7.74316511,169.96,169.91,20.5988]
[1730393655389,7.74316511,169.96,169.92,23.776884]
[1730393656471,7.74316511,169.93,169.89,21.4299]
[1730393656675,7.74316511,169.94,169.89,21.4299]
[1730393657076,7.74316511,169.94,169.89,36.1453]
[1730393657672,7.74316511,169.93,169.89,20.6014]
[1730393658700,5.8845,169.94,169.9,7.74316511]
[1730393660395,13.62716511,169.96,169.9,28.34306511]
[1730393661406,7.74316511,169.94,169.9,20.5999]
[1730393662204,7.74316511,169.92,169.87,22.45986511]
[1730393662504,7.74316511,169.9,169.87,14.7167]
[1730393663603,7.74316511,169.9,169.85,15.4735]
[1730393663794,13.62896511,169.9,169.86,23.776884]
[1730393664187,7.74316511,169.89,169.85,14.7188]
[1730393664394,7.74316511,169.89,169.83,13.63126511]
[1730393664697,5.8858,169.9,169.85,7.74316511]
[1730393666104,5.8858,169.9,169.85,13.63066511]
[1730393667205,13.62856511,169.91,169.85,28.34946511]
[1730393667403,7.74316511,169.9,169.85,28.34946511]
[1730393668093,13.62906511,169.9,169.85,28.34946511]
[1730393669593,7.74316511,169.86,169.79,22.46696511]
[1730393669788,7.74316511,169.85,169.79,22.46696511]
[1730393669994,7.74316511,169.87,169.81,7.74316511]
[1730393670221,7.74316511,169.87,169.82,7.74316511]
[1730393670382,7.74316511,169.88,169.82,7.74316511]
[1730393670585,7.74316511,169.87,169.82,7.74316511]
[1730393671103,7.74316511,169.87,169.81,7.74316511]
[1730393671307,7.74316511,169.86,169.82,29.665384]
[1730393672402,7.74316511,169.85,169.82,29.665384]
[1730393673300,51.57296044,169.9,169.77,5.8902]
[1730393673301,7.74316511,169.83,169.77,5.8902]
[1730393673496,7.74316511,169.81,169.77,5.8902]
[1730393673693,7.74316511,169.82,169.77,5.8902]
[1730393675014,13.63176511,169.82,169.77,5.8902]
[1730393675596,7.74316511,169.82,169.78,23.776884]
[1730393675801,7.74316511,169.83,169.78,23.776884]
[1730393676519,13.63146511,169.83,169.78,29.666684]
[1730393676699,7.74316511,169.83,169.78,37.40984911]
[1730393676897,7.74316511,169.83,169.78,52.13474911]
[1730393678615,7.74316511,169.82,169.78,44.391584]
[1730393678997,7.74316511,169.81,169.78,44.391584]
[1730393679199,7.74316511,169.83,169.78,44.391584]
[1730393680694,7.74316511,169.84,169.78,52.13474911]
[1730393681715,7.74316511,169.83,169.78,52.13474911]
[1730393682915,7.74316511,169.83,169.78,44.391584]
[1730393683221,7.74316511,169.82,169.78,44.391584]
[1730393685394,7.74316511,169.84,169.79,7.74316511]
[1730393685591,6.2147,169.87,169.78,44.391584]
[1730393685592,7.74316511,169.83,169.78,52.13474911]
[1730393685792,7.74316511,169.82,169.78,44.391584]
[1730393686223,7.74316511,169.82,169.78,23.776884]
[1730393686519,13.63196511,169.82,169.77,13.63336511]
[1730393687098,7.74316511,169.81,169.77,5.8902]
[1730393688122,13.63206511,169.81,169.77,5.8902]
[1730393688510,13.63206511,169.81,169.76,7.74316511]
[1730393688828,7.74316511,169.77,169.72,14.7297]
[1730393688993,7.74316511,169.76,169.72,14.7297]
[1730393689196,7.74316511,169.77,169.72,14.7297]
[1730393689724,13.63356511,169.77,169.72,28.36486511]
[1730393691100,13.63356511,169.77,169.72,14.7297]
[1730393691101,7.74316511,169.76,169.72,14.7297]
[1730393691300,5.8904,169.77,169.72,14.7297]
[1730393691301,7.74316511,169.77,169.72,14.7297]
[1730393691504,13.63236511,169.8,169.75,7.74316511]
[1730393691809,7.74316511,169.82,169.76,31.52004911]
[1730393692009,7.74316511,169.82,169.76,7.74316511]
[1730393693114,7.74316511,169.81,169.77,5.8903]
[1730393694426,7.74316511,169.83,169.77,28.35926511]
[1730393694803,7.74316511,169.82,169.77,28.35926511]
[1730393695910,13.63176511,169.82,169.77,28.35926511]
[1730393697205,13.63176511,169.82,169.77,14.7258]
[1730393697409,7.74316511,169.81,169.77,14.7258]
[1730393697758,7.74316511,169.8,169.77,14.7258]
[1730393697934,7.74316511,169.81,169.77,14.7258]
[1730393700247,13.63226511,169.81,169.77,14.7258]
[1730393700918,7.74316511,169.78,169.74,30.2568]
[1730393701122,7.74316511,169.77,169.74,20.619]
[1730393701328,7.74316511,169.76,169.72,5.8917]
[1730393701724,7.74316511,169.77,169.72,20.6218]
[1730393702021,7.74316511,169.77,169.72,28.36496511]
[1730393702414,7.74316511,169.77,169.72,22.47326511]
[1730393702619,7.74316511,169.76,169.72,14.7301]
[1730393703815,13.63386511,169.76,169.72,14.7301]
[1730393704542,7.74316511,169.73,169.7,0.599415]
[1730393704718,7.74316511,169.71,169.7,0.599415]
[1730393705924,13.63556511,169.71,169.7,0.599415]
[1730393717249,7.74316511,169.72,169.7,0.599415]
[1730393717429,13.63486511,169.73,169.7,0.599415]
[1730393717635,7.74316511,169.72,169.7,0.599415]
[1730393717935,7.74316511,169.71,169.7,0.599415]
[1730393718657,7.74316511,169.72,169.7,0.599415]
[1730393719335,13.63526511,169.72,169.7,0.599415]
[1730393719558,7.74316511,169.71,169.7,0.599415]
[1730393720957,13.63556511,169.71,169.7,0.599415]
[1730393723461,7.74316511,169.71,169.7,0.599415]
[1730393727266,13.63556511,169.71,169.7,0.599415]
[1730393727561,21.01350214,169.71,169.7,0.599415]
[1730393728737,13.63556511,169.71,169.7,0.599415]
[1730393733760,0.1,169.69,169.57,7.74316511]
[1730393733953,7.74316511,169.62,169.57,28.38326511]
[1730393734143,7.74316511,169.63,169.57,28.38326511]
[1730393734959,7.74316511,169.63,169.58,23.776884]
[1730393735160,7.74316511,169.62,169.57,7.74316511]
[1730393735337,7.74316511,169.59,169.56,16.0157]
[1730393735738,7.74316511,169.6,169.56,16.0157]
[1730393735943,7.74316511,169.61,169.56,21.9131]
[1730393736859,13.63936511,169.6,169.56,21.9131]
[1730393739167,7.74316511,169.6,169.56,21.9131]
[1730393740049,7.74316511,169.61,169.56,21.9131]
[1730393740242,13.63906511,169.61,169.56,5.8974]
[1730393740472,7.74316511,169.6,169.56,5.8974]
[1730393740861,13.63906511,169.61,169.56,5.8974]
[1730393741565,7.74316511,169.6,169.56,5.8974]
[1730393741942,7.74316511,169.59,169.54,22.48856511]
[1730393742142,7.74316511,169.6,169.55,20.6428]
[1730393742448,7.74316511,169.6,169.55,28.38596511]
[1730393743269,7.74316511,169.61,169.56,23.776884]
[1730393743462,7.74316511,169.62,169.56,31.52004911]
[1730393743761,7.74316511,169.61,169.56,31.52004911]
[1730393744137,7.74316511,169.62,169.57,22.1642]
[1730393745670,7.74316511,169.61,169.58,5.8969]
[1730393750063,7.74316511,169.61,169.57,28.0613]
[1730393750867,7.74316511,169.61,169.58,23.776884]
[1730393751767,13.63906511,169.61,169.58,23.776884]
[1730393752568,7.74316511,169.6,169.56,29.674184]
[1730393753776,7.74316511,169.59,169.56,23.776884]
[1730393753962,13.63946511,169.6,169.56,29.674484]
[1730393754667,13.63946511,169.6,169.56,23.776884]
[1730393757580,7.74316511,169.61,169.57,20.6403]
[1730393757810,5.8952,169.63,169.59,5.8965]
[1730393758082,13.63806511,169.64,169.59,5.8965]
[1730393758756,13.63806511,169.64,169.58,37.41684911]
[1730393759563,7.74316511,169.63,169.58,37.41684911]
[1730393759965,7.74316511,169.62,169.58,29.673684]
[1730393760275,7.74316511,169.62,169.58,23.776884]
[1730393760482,7.74316511,169.59,169.53,0.599415]
[1730393760656,7.74316511,169.55,169.53,0.599415]
[1730393761158,7.74316511,169.54,169.53,0.599415]
[1730393761975,13.64146511,169.54,169.53,0.599415]
[1730393762673,5.8983,169.54,169.53,0.599415]
[1730393763054,7.74316511,169.56,169.53,0.599415]
[1730393763256,7.74316511,169.57,169.53,0.599415]
[1730393764063,7.74316511,169.58,169.53,8.34258011]
[1730393764269,7.74316511,169.58,169.53,14.24108011]
[1730393764684,7.74316511,169.59,169.54,31.52004911]
[1730393764862,13.63936511,169.6,169.54,31.52004911]